[Event "4NCL 2022-2023"]
[Site "Daventry"]
[Date "2023.03.18"]
[Round "7.20"]
[White "Eggleston, David J"]
[Black "Turner, Matthew J"]
[Result "1/2-1/2"]
[ECO "C54"]
[WhiteElo "2364"]
[BlackElo "2441"]
[Annotator "TA"]
[PlyCount "136"]
[EventDate "2022.10.20"]
[EventType "team-tourn"]
[EventCountry "ENG"]
[SourceTitle "playchess.com"]
[Source "ChessBase"]
[SourceQuality "1"]
[TimeControl "40/6000+30:2400+30"]

{[%evp 17,136,0,16,-37,-28,-35,0,0,51,39,25,15,32,17,18,9,38,16,21,12,42,51,51,28,87,79,86,12,17,26,41,0,0,0,10,7,4,0,2,0,129,120,331,309,373,337,468,462,409,341,451,287,295,287,397,316,322,272,429,164,180,158,156,36,36,36,35,33,31,27,31,8,347,329,584,568,552,541,510,252,250,244,584,584,576,568,976,142,139,117,117,117,197,0,39,39,39,39,38,20,20,12,79,0,0,0,0,0,0,-118,-22,-46,-29,-107,0,0,0,0,0,0,0]} 1. e4 {[%emt 0:00:23]} e5 {[%emt 0:00:04]} 2. Nf3 {[%emt 0:00:13]} Nc6 {[%emt 0:00:09]} 3. Bc4 {[%emt 0:00:24]} Bc5 {[%emt 0:01:07]} 4. c3 {[%emt 0:00:06]} Nf6 {[%emt 0:00:09]} 5. d3 {[%emt 0:00:06]} d6 {[%emt 0:01:38]} 6. b4 {[%emt 0:01:38]} Bb6 {[%emt 0:00:11]} 7. a4 {[%emt 0:01:05]} a5 {[%emt 0:01:49]} 8. b5 {[%emt 0:00:12]} Ne7 {[%emt 0:01:34]} 9. O-O {[%emt 0:02:41]} O-O {[%emt 0:03:53]} 10. h3 {[%emt 0:01:21] C54: Giuoco Piano: 4 c3 Nf6, main lines with 5 d4 and 5 d3.} (10. Bg5 $11) 10... Ng6 $15 {[%emt 0:02:52]} 11. Re1 {[%emt 0:03:27]} h6 {[%emt 0:04:42]} 12. Nbd2 {[%emt 0:01:11]} Nh5 {[%emt 0:09:10]} (12... Re8 $11) 13. d4 $14 {[%emt 0:10:58][%cal Of3e5] [#]} Nhf4 $146 {[%emt 0:02:19][%cal Oc8h3]} ({Predecessor:} 13... Qf6 14. Bf1 Be6 15. Nc4 Bxc4 16. Bxc4 Rac8 17. g3 c6 18. Ra3 cxb5 19. Bxb5 Rc7 {1-0 Jarabinsky,M (2126)-Dlugolecki,G (1576) BI-2014-P-0018}) 14. Nf1 {[%emt 0:00:51]} (14. Bf1 $5 {[%cal Rd2c4]}) 14... Be6 {[%emt 0:04:43]} 15. Bxe6 {[%emt 0:03:32]} fxe6 {[%emt 0:07:40]} 16. Be3 {[%emt 0:03:48]} exd4 {[%emt 0:07:49]} (16... d5 {is more complex.} 17. Nxe5 Nxe5 18. dxe5 Qg5) 17. cxd4 {[%emt 0:01:38][%cal Bc3d4,Bd4e5][%mdl 32]} Qf6 {[%emt 0:03:05][%cal Of4g2]} 18. N1h2 {[%emt 0:09:39]} Qf7 {[%emt 0:05:48]} 19. g3 {[%emt 0:15:30]} Nh5 {[%emt 0:09:35]} 20. e5 {[%emt 0:02:38] Against Nf6} dxe5 {[%emt 0:03:13]} (20... Rad8 $11 {keeps the balance.}) 21. dxe5 $16 {[%emt 0:01:01]} Rad8 {[%emt 0:02:15]} 22. Qe2 {[%emt 0:02:54]} ({White should play} 22. Qc2 $16) 22... Bxe3 $11 {[%emt 0:02:35]} 23. Qxe3 {[%emt 0:03:22]} Rd5 {[%emt 0:02:55][%cal Og6e5]} 24. Qc3 {[%emt 0:10:23]} Nhf4 {[%emt 0:02:30]} 25. gxf4 {[%emt 0:08:51]} Nxf4 {[%emt 0:00:05]} 26. Qc2 {[%emt 0:03:42]} (26. Qxa5 Qg6+ 27. Ng4 Nxh3+ 28. Kh2 Qxg4 29. Ra3 Nf4) 26... Qh5 {[%emt 0:01:29]} 27. Kh1 {[%emt 0:01:11] Threatening h4.} (27. h4 $2 Nh3+ 28. Kh1 (28. Kg2 $2 Rxf3 29. Qe4 Rf4 $19) 28... Rxf3 $19) 27... Nxh3 {[%emt 0:03:28]} (27... Qxh3 28. Rg1 $14) 28. Re3 {[%emt 0:03:04]} (28. Qxc7 $2 Nxf2+ 29. Kg1 Qh3 $19) 28... g5 {[%emt 0:04:30]} (28... Rd7 $11) 29. Rf1 $1 $16 {[%emt 0:01:09]} (29. Qxc7 $2 Nxf2+ 30. Kg1 Ng4 $19) 29... g4 $2 {[%emt 0:01:36] [#]} (29... Rf7 $16) 30. Ng1 $1 $18 {[%emt 0:00:42]} Ng5 {[%emt 0:02:24]} 31. Rg3 {[%emt 0:01:57]} (31. Qxc7 Rd2 $16) 31... Rd4 {[%emt 0:00:46]} 32. f3 {[%emt 0:04:57]} (32. Qxc7 Rf7 33. Qxa5 Kg7 $18) 32... gxf3 {[%emt 0:04:29]} 33. Rfxf3 {[%emt 0:00:45]} Rfd8 {[%emt 0:00:42] ...Rd2 is the strong threat.} 34. Rg2 {[%emt 0:03:29] Against Rd2} Kh8 {[%emt 0:05:49]} 35. Rf1 {[%emt 0:02:37]} R8d7 {[%emt 0:03:50]} 36. Qf2 {[%emt 0:02:00]} Kh7 {[%emt 0:01:06]} 37. Qf8 {[%emt 0:02:13]} Rxa4 {[%emt 0:04:57]} (37... Rf7 $142 38. Rxg5 Rxf8 39. Rxh5 Rxf1) 38. Ngf3 $2 {[%emt 0:00:43]} (38. b6 Rc4 39. Qc8) 38... Rg7 {[%emt 0:00:11]} 39. Nxg5+ {[%emt 0:00:56]} hxg5 {[%emt 0:00:07]} 40. Rgf2 {[%emt 0:01:57] The board is on fire. White has more active pieces.} (40. Qd8 $16 Qh4 41. Qd3+ Kg8 42. b6 (42. Qf3 Rf4 $14) 42... cxb6 43. Qd6) 40... Rh4 $14 {[%emt 0:00:22]} (40... g4 $2 41. Rf7 Qxe5 42. Rxg7+ Qxg7 43. Rf7 $18) 41. Kg1 {[%emt 0:02:20]} Rf4 {[%emt 0:00:00] Prevents Rf7.} (41... g4 $2 42. Rf7 Qxe5 43. Rxg7+ Qxg7 44. Rf7 $18) 42. Qd8 $40 {[%emt 0:05:31][%mdl 128] Black needs to defend precisely.} Rgf7 {[%emt 0:00:00]} 43. Rxf4 {[%emt 0:05:41]} gxf4 {[%emt 0:00:00]} 44. Nf3 {[%emt 0:00:22] Black must now prevent Ng5+.} (44. Kh1 $5 {[%cal Rf1g1]}) 44... Rg7+ {[%emt 0:00:00][%mdl 8192]} (44... Qg6+ $1 $11 {and Black has nothing to worry.} 45. Kf2 (45. Ng5+ Kh6 $11) 45... Qc2+ 46. Kg1 Qg6+ 47. Qg5 (47. Ng5+ Kh6 $11) 47... Rd7) 45. Kf2 $18 {[%emt 0:00:52] Threatens to win with Ke1.} Qh3 $2 {[%emt 0:00:10]} (45... c6 {might work better.} 46. bxc6 bxc6 47. Qxa5 Qh3) 46. Ke1 {[%emt 0:04:09]} a4 {[%emt 0:11:48]} 47. Rf2 {[%emt 0:02:36] Rh2 would be deadly.} (47. Ng5+ Rxg5 48. Qxg5 Qe3+ 49. Kd1 Qd3+ 50. Ke1 Qe3+ 51. Kd1 Qd3+ 52. Ke1 Qe3+ $11) 47... a3 {[%emt 0:01:26][%cal Oa3a2]} 48. Qd3+ {[%emt 0:07:52]} (48. Rh2 $142 Rg1+ 49. Kf2 (49. Nxg1 Qxh2 50. Qe7+ Kh8 $11) 49... Qxh2+ 50. Nxh2) 48... Kg8 {[%emt 0:00:28][%cal Oa3a2]} 49. Qxa3 {[%emt 0:01:42] aiming for Qa8+.} (49. Qd8+ Kf7 50. Qxc7+ Kg6 $18) 49... Rg1+ $2 {[%emt 0:02:01]} (49... Qh1+ {is more resistant.} 50. Ke2 Qb1) 50. Ke2 {[%emt 0:00:41]} (50. Nxg1 $2 Qxa3 51. Nf3 Qa1+ 52. Kd2 Qb2+ 53. Ke1 Qb1+ 54. Kd2 Qxb5 $19) (50. Kd2 Rg2 51. Ke2 Qg3 $18) 50... Rb1 {[%emt 0:00:14]} 51. Qa2 {[%emt 0:10:38]} ({And not} 51. Qe7 Rb2+ 52. Nd2 Qg4+ 53. Kf1 Qd1+ 54. Kg2 Rxd2 55. Qe8+ (55. Qxe6+ Kf8 $11) 55... Kh7 56. Qe7+ Kh8 57. Qe8+ Kh7 58. Qf7+ Kh8 59. Qe8+ Kh7 $11) 51... Rxb5 {[%emt 0:01:02]} 52. Qc2 $2 {[%emt 0:00:46]} (52. Qd2 $18 {is the precise move to win. White threatens Qd8+ and mate.} Rb3 53. Qxf4) 52... Kf8 $16 {[%emt 0:01:39]} 53. Qd2 {[%emt 0:01:54] White wants to mate with Qd8+.} Ke8 {[%emt 0:04:26] Dodges Qd8+} 54. Qxf4 {[%emt 0:00:21]} Qh5 {[%emt 0:00:26]} (54... Rb2+ $16 55. Nd2 Ra2) 55. Qf6 $2 {[%emt 0:02:09]} (55. Rf1 $18) 55... Qg4 {[%emt 0:00:07]} 56. Qh8+ {[%emt 0:00:41]} Kd7 {[%emt 0:00:14] ( -> ...Qc4+)} 57. Qh7+ {[%emt 0:00:08]} Kc6 {[%emt 0:00:13]} 58. Qc2+ {[%emt 0:00:33]} (58. Ke1 {feels hotter.} Rc5 59. Qd3 b5 60. Ra2) 58... Rc5 {[%emt 0:00:08]} 59. Qb2 {[%emt 0:00:15]} b5 {[%emt 0:01:26] [#]} (59... Rc4 $11 {remains equal.}) 60. Kf1 {[%emt 0:00:14]} (60. Ke3 $1 $16) 60... Kb6 $11 {[%emt 0:01:06]} 61. Ke1 {[%emt 0:00:14]} Qe4+ {[%emt 0:00:41]} 62. Kf1 {[%emt 0:00:12]} (62. Kd1 {keeps more tension.} Rd5+ 63. Nd2 b4 64. Qb3) 62... b4 {[%emt 0:00:20]} 63. Kg1 {[%emt 0:02:00]} (63. Qa2 $11) 63... Qg4+ {[%emt 0:06:20]} (63... Rc3 $17 {And now ...c5 would win.} 64. Kg2 Qg4+ 65. Kh2 Rxf3 66. Rxf3 Qxf3 67. Qxb4+ Kc6 68. Qa4+ Kb6 69. Qb4+ Kc6 70. Qa4+ Kc5 71. Qa7+ Kd5 72. Qxc7 Qe2+ 73. Kh3 Qf3+ 74. Kh4 Qf5) 64. Kf1 {[%emt 0:00:18]} Rc3 {[%emt 0:20:39][%mdl 1024] Black has compensation.} 65. Qe2 {[%emt 0:01:00]} (65. Ne1 $1 $11 {was the only way to keep the balance.}) 65... c5 {[%emt 0:00:00]} (65... b3 $17 {Strongly threatening ...Rc1+.} 66. Qd1 Qh3+ 67. Kg1 (67. Ke1 $2 Re3+ 68. Kd2 Qh6 $19) 67... Kb7) 66. Qd1 {[%emt 0:00:33] Dodges Rc1. The position is equal.} Qc4+ {[%emt 0:00:00]} 67. Kg2 {[%emt 0:00:06]} Qg4+ {[%emt 0:00:00]} 68. Kf1 {[%emt 0:00:01]} Qc4+ {[%emt 0:00:00] Black defended with fortune.   Weighted Error Value: White=0.40/Black=0.56} 1/2-1/2

[Event "4NCL 2022-2023"]
[Site "Daventry"]
[Date "2023.03.18"]
[Round "7.21"]
[White "Cyborowski, Lukasz"]
[Black "Pert, Richard G"]
[Result "1/2-1/2"]
[ECO "A25"]
[WhiteElo "2498"]
[BlackElo "2411"]
[Annotator "TA"]
[PlyCount "68"]
[EventDate "2022.10.20"]
[EventType "team-tourn"]
[EventCountry "ENG"]
[SourceTitle "playchess.com"]
[Source "ChessBase"]
[SourceQuality "1"]
[TimeControl "40/6000+30:2400+30"]

{[%evp 9,68,14,23,14,20,6,8,7,22,20,18,7,0,0,21,0,53,40,50,11,18,14,64,57,55,39,48,55,82,76,94,87,87,88,99,48,80,26,38,33,70,62,81,68,80,78,116,87,97,88,93,68,54,10,10,0,4,1,4,1,7]} 1. c4 {[%emt 0:00:09]} e5 {[%emt 0:01:39]} 2. Nc3 {[%emt 0:00:15]} Nc6 {[%emt 0:04:23]} 3. e3 {[%emt 0:02:13]} d6 {[%emt 0:08:44]} 4. d4 {[%emt 0:05:19]} g6 {[%emt 0:04:04]} 5. dxe5 {[%emt 0:08:22]} dxe5 {[%emt 0:10:07]} 6. Qxd8+ {[%emt 0:01:06] A25: English Opening vs King's Indian with ...Nc6 but without early d3.} Nxd8 {[%emt 0:00:18]} 7. b3 {[%emt 0:00:25]} Ne6 {[%emt 0:07:53]} 8. Bb2 {[%emt 0:01:36]} Bg7 {[%emt 0:02:28]} 9. O-O-O {[%emt 0:04:24]} Bd7 {[%emt 0:01:18]} 10. Nf3 {[%emt 0:03:31]} Nh6 {[%emt 0:10:46]} 11. Be2 {[%emt 0:22:32] [#]} f6 $146 {[%emt 0:04:55]} ({Predecessor:} 11... f5 12. Rd2 e4 13. Nd4 Nxd4 14. exd4 O-O-O 15. Rdd1 Rde8 16. Rhe1 f4 17. h3 Nf5 {0-1 Miles,A (2555)-Liberzon,V (2550) (GER-ch) International04 1977 (13)}) 12. Rhg1 {[%emt 0:02:57]} Nf7 {[%emt 0:03:35]} (12... f5 $11) 13. g4 $36 {[%emt 0:04:12][%mdl 2048] White is more active.} O-O-O {[%emt 0:07:22]} 14. Nd5 {[%emt 0:10:43]} c6 {[%emt 0:03:35]} 15. Nc3 {[%emt 0:00:34]} Kc7 {[%emt 0:12:33]} (15... Bf8 $11) 16. Ne4 {[%emt 0:02:30] White is much more active.} Bc8 {[%emt 0:00:09]} 17. Rxd8 {[%emt 0:00:52]} Rxd8 {[%emt 0:00:07]} 18. h4 {[%emt 0:02:01]} Re8 {[%emt 0:03:37]} 19. g5 {[%emt 0:06:32]} fxg5 {[%emt 0:03:58]} 20. hxg5 {[%emt 0:01:55]} Nf8 {[%emt 0:00:29]} 21. Rh1 {[%emt 0:04:50]} Bf5 {[%emt 0:03:32] [#]} 22. Nfd2 {[%emt 0:02:20]} (22. Bd3 $1 $16) 22... b6 {[%emt 0:04:10]} 23. Ba3 {[%emt 0:02:47]} (23. c5 $16) 23... c5 {[%emt 0:00:57]} 24. Bb2 {[%emt 0:00:04]} Rd8 {[%emt 0:04:06]} 25. Bf3 {[%emt 0:07:05]} Kc8 {[%emt 0:00:09]} 26. Bg2 {[%emt 0:01:37]} Rd7 {[%emt 0:00:51]} 27. Bc3 {[%emt 0:06:17]} Rc7 {[%emt 0:02:01]} 28. Kd1 {[%emt 0:01:48]} Ne6 {[%emt 0:02:02]} 29. Rxh7 {[%emt 0:00:13]} Nfxg5 {[%emt 0:00:06]} 30. Nxg5 {[%emt 0:04:45]} Nxg5 {[%emt 0:00:05]} 31. Rh1 {[%emt 0:00:19]} e4 {[%emt 0:01:09] The position is equal.} 32. Bxg7 {[%emt 0:00:11]} Rxg7 {[%emt 0:00:04]} 33. Rh4 {[%emt 0:01:19][%cal Rd2e4]} Re7 {[%emt 0:00:52]} 34. Ke2 {[%emt 0:01:05]} Kd7 {[%emt 0:00:19] Weighted Error Value: White=0.12 (very precise) /Black=0.14 (very precise)} 1/2-1/2

[Event "4NCL 2022-2023"]
[Site "Daventry"]
[Date "2023.03.18"]
[Round "7.22"]
[White "Kirk, Ezra"]
[Black "Csonka, Balazs"]
[Result "1/2-1/2"]
[ECO "C48"]
[WhiteElo "2427"]
[BlackElo "2494"]
[Annotator "TA"]
[PlyCount "73"]
[EventDate "2022.10.20"]
[EventType "team-tourn"]
[EventCountry "ENG"]
[SourceTitle "playchess.com"]
[Source "ChessBase"]
[SourceQuality "1"]
[TimeControl "40/6000+30:2400+30"]

{[%evp 12,73,0,-6,-5,-7,12,8,22,11,24,23,20,23,19,0,15,0,0,0,0,0,0,0,0,0,0,0,0,0,0,-7,0,0,0,0,0,0,0,0,0,0,0,0,0,0,0,0,0,-20,0,0,0,0,0,0,0,0,0,0,0,-4,-3,-16]} 1. e4 {[%emt 0:01:08]} e5 {[%emt 0:00:10]} 2. Nf3 {[%emt 0:00:16]} Nc6 {[%emt 0:00:06]} 3. Nc3 {[%emt 0:00:05]} Nf6 {[%emt 0:00:09]} 4. Bb5 {[%emt 0:00:10]} Nd4 {[%emt 0:00:10]} 5. Bc4 {[%emt 0:00:11]} Bc5 {[%emt 0:00:25]} 6. d3 {[%emt 0:00:34]} d6 {[%emt 0:00:44]} 7. Nxd4 {[%emt 0:01:03]} Bxd4 {[%emt 0:03:46] C48: Four Knights: 4 Bb5, replies other than 4...Bb4.} 8. Qf3 {[%emt 0:00:39] [#]} Bxc3+ $146 {[%emt 0:21:06]} ({Predecessor:} 8... Be6 9. Ne2 Bb6 10. Bxe6 fxe6 11. Qh3 Qe7 12. Bd2 O-O 13. f3 a5 14. O-O-O a4 15. f4 exf4 16. Nxf4 {0-1 Dimitrov,R (2515)-Zajic,M (2477) Nis 75th 2019 (2)}) 9. bxc3 {[%emt 0:00:12]} Be6 {[%emt 0:00:11]} 10. Bb3 {[%emt 0:08:05][%cal Bc4b3,Bb3a4,Ba4c6][%mdl 32]} h6 {[%emt 0:13:09]} 11. O-O {[%emt 0:04:42]} O-O {[%emt 0:06:39]} 12. Rb1 {[%emt 0:07:20]} b6 {[%emt 0:03:24]} 13. Ba4 {[%emt 0:06:49] The position is equal.} Kh7 {[%emt 0:13:28]} 14. Bc6 {[%emt 0:07:07]} Rb8 {[%emt 0:01:16]} 15. Qe2 {[%emt 0:01:54]} Bxa2 {[%emt 0:11:29]} 16. Ra1 {[%emt 0:01:47]} Be6 {[%emt 0:00:05]} 17. Rxa7 {[%emt 0:03:21]} Bd7 {[%emt 0:00:09]} 18. Bxd7 {[%emt 0:04:38]} Qxd7 {[%emt 0:01:05]} 19. f4 {[%emt 0:02:40]} Ra8 {[%emt 0:07:13]} 20. Rxa8 {[%emt 0:00:29]} Rxa8 {[%emt 0:00:07]} 21. h3 {[%emt 0:08:51]} Ra1 {[%emt 0:06:36]} 22. fxe5 {[%emt 0:02:45]} dxe5 {[%emt 0:00:09]} 23. Kh2 {[%emt 0:03:37]} Qe6 {[%emt 0:06:12]} 24. c4 {[%emt 0:03:33]} Kg8 {[%emt 0:04:11]} 25. Qe1 {[%emt 0:07:02]} Nd7 {[%emt 0:01:59]} 26. Qc3 {[%emt 0:34:32]} Ra8 {[%emt 0:01:22]} 27. Be3 {[%emt 0:00:00]} f6 {[%emt 0:00:46]} 28. Qe1 {[%emt 0:00:00]} Ra2 {[%emt 0:03:18]} 29. Qb1 {[%emt 0:00:00]} Ra8 {[%emt 0:00:23]} 30. Rf3 {[%emt 0:00:00]} Nf8 {[%emt 0:01:15]} 31. c5 {[%emt 0:00:00]} bxc5 {[%emt 0:00:05]} 32. Bxc5 {[%emt 0:00:00]} Qc6 {[%emt 0:01:23]} 33. Bxf8 {[%emt 0:00:00]} Rxf8 {[%emt 0:00:29]} 34. Qb3+ {[%emt 0:00:00]} Kh7 {[%emt 0:00:18]} 35. Rf1 {[%emt 0:00:00]} Qc5 {[%emt 0:02:37]} 36. Ra1 {[%emt 0:00:51]} Qf2 {[%emt 0:00:45]} 37. Qc3 {[%emt 0:02:26] Not much happened in this game.   Weighted Error Value: White=0.03 (flawless) /Black=0.03 (flawless)} 1/2-1/2

[Event "4NCL 2022-2023"]
[Site "Daventry"]
[Date "2023.03.18"]
[Round "7.23"]
[White "Kolbus, Dietmar"]
[Black "Arkell, Keith C"]
[Result "1/2-1/2"]
[ECO "A46"]
[WhiteElo "2277"]
[BlackElo "2404"]
[Annotator "TA"]
[PlyCount "90"]
[EventDate "2022.10.20"]
[EventType "team-tourn"]
[EventCountry "ENG"]
[SourceTitle "playchess.com"]
[Source "ChessBase"]
[SourceQuality "1"]
[TimeControl "40/6000+30:2400+30"]

{[%evp 12,90,8,0,0,-26,-20,-25,-18,-18,-8,-20,0,-10,-20,-10,-18,-20,-21,-21,-23,-31,-28,-30,-25,-22,0,-13,-17,-24,-14,-25,-11,-18,-8,-29,0,0,15,0,0,0,0,0,0,0,0,0,10,11,11,14,10,0,0,0,0,0,0,0,0,0,0,0,0,-6,0,0,0,0,0,0,0,0,0,0,0,0,0,0,0]} 1. d4 {[%emt 0:00:04]} e6 {[%emt 0:00:21]} 2. Nf3 {[%emt 0:00:25]} Nf6 {[%emt 0:00:06]} 3. g3 {[%emt 0:00:51]} b5 {[%emt 0:00:32]} 4. Bg2 {[%emt 0:00:16]} Bb7 {[%emt 0:00:04]} 5. O-O {[%emt 0:00:13]} c5 {[%emt 0:00:07]} 6. c3 {[%emt 0:01:03]} Be7 $1 {[%emt 0:00:15] 6...Be7 is better than 6...Na6.} 7. Nbd2 {[%emt 0:12:00][%cal Oe2e4]} O-O {[%emt 0:00:47] A46: 1 d4 Nf6 2 Nf3 e6: Torre, London and Colle Systems.} 8. b3 {[%emt 0:15:43]} d5 {[%emt 0:01:58] [#]} 9. dxc5 $146 {[%emt 0:06:09]} ({Predecessor:} 9. Bb2 Nbd7 10. Rc1 {½-½ Bakre,T (2467)-Arutinian,D (2446) Olomouc Proclient Cup 2005 (9)}) 9... Bxc5 {[%emt 0:00:07] Black has an edge.} 10. Bb2 {[%emt 0:08:26]} Nbd7 {[%emt 0:01:41]} 11. a4 {[%emt 0:04:20]} a6 {[%emt 0:01:31]} 12. axb5 {[%emt 0:04:47]} axb5 {[%emt 0:00:04]} 13. c4 {[%emt 0:00:47]} Qb6 {[%emt 0:03:41] Threatens to win with ...Ng4.} 14. cxd5 {[%emt 0:01:33]} Bxd5 {[%emt 0:07:42] Black wants to play ...Ng4.} 15. e3 {[%emt 0:08:14]} Rxa1 {[%emt 0:00:26]} 16. Qxa1 {[%emt 0:00:50]} Ra8 {[%emt 0:01:19]} 17. Qb1 {[%emt 0:00:24]} Qb7 {[%emt 0:03:28]} 18. Rd1 {[%emt 0:15:36]} Bc6 {[%emt 0:11:39]} 19. Ne1 {[%emt 0:05:17]} Bxg2 {[%emt 0:00:29]} 20. Nxg2 {[%emt 0:00:05]} Bb4 {[%emt 0:02:44]} 21. h4 {[%emt 0:08:37]} e5 {[%emt 0:06:14]} 22. Ne1 {[%emt 0:00:43]} Re8 {[%emt 0:02:16]} 23. Ndf3 {[%emt 0:01:56]} Bxe1 {[%emt 0:01:15]} 24. Nxe1 {[%emt 0:00:07] The position is equal.} Qa6 {[%emt 0:19:48]} 25. Nf3 {[%emt 0:03:46]} Qe6 {[%emt 0:04:12]} 26. Ba1 {[%emt 0:02:05]} h6 {[%emt 0:00:14]} 27. Qc2 {[%emt 0:00:45]} Ra8 {[%emt 0:10:43]} 28. Bb2 {[%emt 0:00:47]} Ng4 {[%emt 0:05:55]} 29. e4 {[%emt 0:04:04]} Ndf6 {[%emt 0:03:25][%cal Bd7f6,Bf6e4,Be4f2][%mdl 32]} 30. Rd2 {[%emt 0:02:16]} (30. Kg2 {seems wilder.} Rc8 31. Qd3 Qb6 32. Rd2) 30... Rc8 {[%emt 0:08:41]} 31. Qd3 {[%emt 0:00:08]} Qc6 {[%emt 0:03:23]} 32. Nxe5 {[%emt 0:01:28]} Nxe5 {[%emt 0:00:12]} ({Don't take} 32... Qxe4 33. Nxg4 Qxg4 34. Qxb5 $16) 33. Bxe5 {[%emt 0:00:03]} Nxe4 {[%emt 0:00:51]} 34. Rd1 {[%emt 0:01:57]} Qc2 {[%emt 0:01:44]} 35. Qxc2 {[%emt 0:01:08]} Rxc2 $11 {[%emt 0:00:04][%mdl 4096] Endgame KRB-KRN} 36. Rd8+ {[%emt 0:00:42]} Kh7 {[%emt 0:00:02]} 37. Rb8 {[%emt 0:00:25]} Nxf2 {[%emt 0:02:58]} 38. Rxb5 {[%emt 0:00:14]} Nd3 {[%emt 0:01:29]} 39. Bd6 {[%emt 0:00:40]} Rb2 {[%emt 0:04:24]} 40. b4 {[%emt 0:00:35]} Kg6 {[%emt 0:00:50]} 41. h5+ {[%emt 0:00:00]} Kf6 {[%emt 0:00:00]} 42. Bf8 {[%emt 0:00:00]} g6 {[%emt 0:00:00]} 43. Bxh6 {[%emt 0:09:13] And now Bg5+ would win.} gxh5 {[%emt 0:00:00]} 44. Rxh5 {[%emt 0:08:02]} Kg6 {[%emt 0:00:00]} 45. Rd5 {[%emt 0:00:32]} Kxh6 {[%emt 0:00:00] An interesting draw.   Weighted Error Value: White=0.03 (flawless) /Black=0.05 (flawless)} 1/2-1/2